bitfinex-derivatives/quotes_SOLF0:USTF0_20250901
["timestamp","ask_amount","ask_price","bid_price","bid_amount"]
[1756723869484,4.5197,199.13,199.06,3.55811894]
[1756723870279,4.5197,199.13,199.07,4.65246264]
[1756723870484,4.5197,199.13,199.08,12.76246264]
[1756723870687,4.5192,199.15,199.09,8.21058158]
[1756723870986,4.5192,199.15,199.1,12.76246264]
[1756723871186,4.5192,199.15,199.11,4.65246264]
[1756723871386,4.5192,199.15,199.12,4.65246264]
[1756723871584,4.5192,199.15,199.13,4.65246264]
[1756723871783,4.5188,199.17,199.14,4.65246264]
[1756723871986,0.28,199.21,199.15,4.65246264]
[1756723872285,71.14451075,199.24,199.16,4.65246264]
[1756723872486,71.14451075,199.24,199.17,4.65246264]
[1756723872688,4.5176,199.22,199.18,4.65246264]
[1756723872989,4.5176,199.22,199.19,4.65246264]
[1756723873287,4.5176,199.22,199.2,4.65246264]
[1756723873489,70.2553,199.28,199.21,4.65246264]
[1756723873490,4.5172,199.24,199.21,4.65246264]
[1756723873684,4.5172,199.24,199.22,4.65246264]
[1756723873990,4.5172,199.24,199.23,4.65246264]
[1756723874985,0.28,199.29,199.23,4.65246264]
[1756723875192,0.28,199.29,199.24,4.65246264]
[1756723875393,0.28,199.29,199.18,3.55811894]
[1756723875593,0.28,199.29,199.19,4.63311283]
[1756723875793,4.5167,199.26,199.2,4.63311283]
[1756723875994,4.5167,199.26,199.21,4.63311283]
[1756723876295,0.28,199.29,199.22,4.63311283]
[1756723876489,0.28,199.29,199.18,3.55811894]
[1756723876490,70.2542,199.28,199.23,4.63311283]
[1756723876690,70.2571,199.27,199.24,4.63311283]
[1756723876894,70.2571,199.27,199.15,11.66811894]
[1756723876895,70.2664,199.25,199.15,11.66811894]
[1756723877090,4.518,199.21,199.16,4.63007421]
[1756723877291,0.28,199.2,199.17,4.63007421]
[1756723877490,0.28,199.2,199.18,4.63007421]
[1756723877692,0.28,199.2,199.06,4.5212]
[1756723877693,70.2925,199.17,199.06,3.55811894]
[1756723877892,70.2895,199.18,199.06,3.55811894]
[1756723878793,70.2957,199.16,199.06,3.55811894]
[1756723878984,70.2994,199.15,199.06,3.55811894]
[1756723880089,4.5206,199.09,199.03,3.55811894]
[1756723880292,70.2994,199.15,199.02,3.55811894]
[1756723880487,70.303,199.14,199.02,3.55811894]
[1756723880688,70.3135,199.11,199.02,3.55811894]
[1756723881084,4.5212,199.07,199.02,3.55811894]
[1756723881288,70.3207,199.09,198.99,11.66811894]
[1756723881489,70.3242,199.08,198.99,11.66811894]
[1756723881691,70.3323,199.06,198.96,3.55811894]
[1756723882489,70.3135,199.11,198.99,3.55811894]
[1756723883794,0.28,199.1,198.99,3.55811894]
[1756723885088,3.55811894,199.16,198.99,3.55811894]
[1756723885289,0.28,199.15,198.99,3.55811894]
[1756723885494,3.55811894,199.16,198.99,3.55811894]
[1756723885795,3.55811894,199.13,198.99,3.55811894]
[1756723886096,0.28,199.12,198.99,3.55811894]
[1756723886300,3.55811894,199.13,198.99,3.55811894]
[1756723886499,0.28,199.12,198.99,3.55811894]
[1756723887396,0.28,199.12,198.97,8.11]
[1756723887597,3.55811894,199.1,198.97,8.11]
[1756723887799,0.28,199.09,198.94,4.5239]
[1756723887997,0.28,199.09,198.95,3.55811894]
[1756723888893,0.28,199.09,198.96,8.11]
[1756723889099,0.28,199.09,198.96,12.6334]
[1756723889703,0.28,199.09,198.96,8.11]
[1756723890500,0.28,199.19,198.99,8.11]
[1756723890699,0.28,199.14,198.99,8.11]
[1756723891796,0.28,199.14,198.99,12.6326]
[1756723892606,0.28,199.14,199.01,3.55811894]
[1756723893509,0.28,199.16,199.01,3.55811894]
[1756723894004,3.55811894,199.17,199.01,3.55811894]
[1756723894200,3.55811894,199.14,198.93,75.36686024]
[1756723894403,0.28,199.1,198.94,8.11]
[1756723896006,0.28,199.07,198.94,8.11]
[1756723899106,3.55811894,199.11,198.94,8.11]
[1756723899107,3.81811894,199.11,198.94,8.11]
[1756723899706,3.81811894,199.11,198.94,12.6336]
[1756723899907,0.26,199.11,198.97,7.72]
[1756723900110,3.81811894,199.15,198.99,3.55811894]
[1756723900309,3.81811894,199.15,199.0,7.72]
[1756723902008,3.55811894,199.18,199.03,7.72]
[1756723902405,0.26,199.19,199.03,7.72]
[1756723902606,0.26,199.19,199.06,7.72]
[1756723903012,0.26,199.17,199.02,11.27811894]
[1756723903406,219.81774199,199.3,199.03,7.72]
[1756723903407,15.09,199.23,199.03,7.72]
[1756723903610,0.26,199.19,199.03,7.72]
[1756723904110,3.55811894,199.17,199.03,7.72]
[1756723904310,70.3005,199.14,199.03,7.72]
[1756723904511,4.5202,199.1,199.03,7.72]
[1756723905011,70.3005,199.14,199.03,7.72]
[1756723905201,70.2922,199.16,199.03,7.72]
[1756723905403,70.2922,199.16,199.06,7.72]
[1756723905605,4.5199,199.12,199.06,7.72]
[1756723906411,70.3,199.14,199.06,7.72]
[1756723907013,4.5205,199.09,199.06,7.72]
[1756723908212,4.5199,199.11,199.04,7.72]
[1756723908405,0.26,199.2,199.07,7.72]
[1756723908406,70.2833,199.19,199.07,7.72]
[1756723908603,70.2855,199.18,199.07,7.72]
[1756723908809,70.2938,199.16,199.07,7.72]
[1756723909012,70.2961,199.15,199.07,7.72]
[1756723909213,70.3004,199.14,199.07,7.72]
[1756723909412,4.5205,199.09,199.03,11.27811894]
[1756723909611,70.3061,199.13,199.03,11.27811894]
[1756723909812,70.3004,199.14,199.03,11.27811894]
[1756723910013,70.2855,199.18,199.03,3.55811894]
[1756723910213,70.2855,199.18,199.04,7.72]
[1756723910513,4.5188,199.17,199.04,7.72]
[1756723910712,70.2864,199.18,199.07,7.72]
[1756723910916,70.2934,199.16,199.07,7.72]
[1756723911114,70.2999,199.14,199.03,11.27811894]
[1756723911617,4.521,199.07,199.03,11.27811894]
[1756723911916,70.314,199.1,199.0,3.55811894]
[1756723912317,70.314,199.1,198.99,7.72]
[1756723912718,70.5599,199.14,199.0,3.55811894]
[1756723913017,70.3114,199.11,199.0,3.55811894]
[1756723913311,70.314,199.1,199.0,3.55811894]
[1756723913613,4.5214,199.05,199.0,3.55811894]
[1756723913813,70.314,199.1,199.01,7.72]
[1756723914014,70.3075,199.12,199.01,7.72]
[1756723914222,4.5208,199.08,199.01,7.72]
[1756723914719,4.5209,199.07,199.01,7.72]
[1756723915212,4.5205,199.09,199.01,7.72]
[1756723915414,70.3068,199.13,199.01,7.72]
[1756723915617,70.3075,199.12,199.01,7.72]
[1756723915816,4.5209,199.07,199.01,7.72]
[1756723916618,4.5212,199.06,199.01,7.72]
[1756723917718,4.5214,199.05,199.0,3.55811894]
[1756723918019,4.5214,199.05,199.0,11.27811894]
[1756723918220,70.3068,199.13,199.01,7.72]
[1756723918221,70.3072,199.12,199.01,7.72]
[1756723918420,4.5209,199.07,199.01,7.72]
[1756723919320,4.5205,199.09,199.01,7.72]
[1756723919716,4.5205,199.09,199.01,12.2421]
[1756723920021,70.5597,199.14,199.01,7.72]
[1756723920022,4.5207,199.08,199.01,7.72]
[1756723920218,70.3128,199.11,199.01,7.72]
[1756723920519,70.3128,199.11,199.0,3.55811894]
[1756723920520,4.5213,199.06,199.0,11.27811894]
[1756723920921,70.3147,199.1,199.0,11.27811894]
[1756723921121,70.3253,199.07,199.0,3.55811894]
[1756723921319,70.335,199.04,198.95,7.72]
[1756723921520,70.3388,199.03,198.93,3.55811894]
[1756723921712,4.523,198.98,198.93,11.27811894]
[1756723921918,70.6127,199.05,198.93,11.27811894]
[1756723922117,70.3422,199.02,198.93,11.27811894]
[1756723923218,4.5224,199.01,198.93,11.27811894]
[1756723923625,70.3317,199.05,198.93,11.27811894]
[1756723924830,70.6053,199.07,198.9,3.55811894]
[1756723924831,70.3426,199.02,198.9,3.55811894]
[1756723926226,70.3464,199.01,198.9,3.55811894]
[1756723927026,4.5226,198.99,198.9,8.08261894]
[1756723927226,70.3296,199.06,198.93,3.55811894]
[1756723927419,0.28,199.08,198.94,7.72]
[1756723927622,0.28,199.08,198.96,11.27811894]
[1756723928025,70.3164,199.1,198.96,11.27811894]
[1756723928724,0.28,199.12,198.96,11.27811894]
[1756723928725,0.28,199.12,199.02,3.55811894]
[1756723928919,70.2964,199.15,199.02,11.14811894]
[1756723929127,70.2964,199.15,199.02,15.66991894]
[1756723929128,4.5203,199.1,199.02,15.66991894]
[1756723929526,0.27,199.16,199.02,11.14811894]
[1756723929726,4.5196,199.13,199.03,4.5216]
[1756723929922,70.5641,199.16,199.02,11.14811894]
[1756723930122,4.5211,199.06,199.02,3.55811894]
[1756723930323,70.3172,199.1,198.99,3.55811894]
[1756723931125,4.5213,199.06,198.99,3.55811894]
[1756723932328,70.3008,199.14,199.02,3.55811894]
[1756723933222,4.5199,199.11,199.02,8.07991894]
[1756723933524,70.3006,199.14,199.02,3.55811894]
[1756723933724,70.3077,199.12,199.02,3.55811894]
[1756723933924,70.3178,199.09,199.01,3.55811894]
[1756723934522,0.27,199.1,199.01,3.55811894]
[1756723935326,70.5842,199.1,199.01,3.55811894]
[1756723935527,70.5842,199.1,198.99,7.59]
[1756723935725,4.5212,199.06,198.99,7.59]
[1756723936831,4.5206,199.08,198.99,7.59]
[1756723937429,4.5203,199.1,199.01,3.55811894]
[1756723937925,0.27,199.15,199.01,3.55811894]
[1756723938131,70.3041,199.13,199.01,3.55811894]
[1756723938332,70.5773,199.12,199.01,3.55811894]
[1756723938531,4.5204,199.09,199.01,3.55811894]
[1756723939833,70.578,199.12,199.01,3.55811894]
[1756723940327,4.5204,199.09,199.01,3.55811894]
[1756723941633,70.3113,199.11,199.01,3.55811894]
[1756723941932,70.3145,199.1,199.01,3.55811894]
[1756723942436,0.27,199.12,199.01,3.55811894]
[1756723942627,70.5635,199.16,199.04,3.55811894]
[1756723942825,4.52,199.11,199.04,8.07951894]
[1756723943225,0.27,199.16,199.04,3.55811894]
[1756723943833,4.5196,199.13,199.05,4.5211]
[1756723944932,70.2967,199.15,199.02,7.59]
[1756723945237,70.2967,199.15,199.03,3.55811894]
[1756723945834,70.2967,199.15,199.03,8.07971894]
[1756723946035,0.27,199.16,199.03,8.07971894]
[1756723946334,70.3023,199.14,199.03,3.55811894]
[1756723946537,4.5206,199.09,199.03,3.55811894]
[1756723947735,4.52,199.11,199.03,8.07971894]
[1756723948336,4.52,199.11,199.03,3.55811894]
[1756723948535,4.5205,199.09,199.03,3.55811894]
[1756723949643,70.5807,199.11,199.0,11.14811894]
[1756723950535,0.27,199.11,199.0,11.14811894]
[1756723951140,4.5205,199.09,199.0,15.67041894]
[1756723951442,70.5818,199.11,199.0,11.14811894]
[1756723952643,0.27,199.11,199.0,15.67041894]
[1756723953943,4.5209,199.07,199.0,15.67041894]
[1756723955744,0.27,199.11,199.0,15.67041894]
[1756723955941,70.5673,199.15,199.05,2.22074758]
[1756723956342,70.5793,199.12,198.99,7.59]
[1756723956546,70.5793,199.12,199.02,2.22074758]
[1756723956838,79.3357,199.15,199.02,9.81074758]
[1756723957243,79.3357,199.15,199.02,14.33254758]
[1756723957435,70.3015,199.14,199.02,14.33254758]
[1756723959541,4.5205,199.09,199.02,14.33254758]
[1756723959940,4.5205,199.09,199.05,2.22074758]
[1756723961443,4.5207,199.08,199.05,2.22074758]
[1756723961637,4.5207,199.08,199.02,9.81074758]
[1756723963053,4.5207,199.08,199.05,2.22074758]
[1756723965051,4.5202,199.1,199.05,2.22074758]
[1756723965853,4.5205,199.09,199.05,2.22074758]
[1756723968352,0.27,199.18,199.06,8.01]
[1756723969447,0.27,199.18,199.08,2.22074758]
[1756723970654,4.5194,199.14,199.08,2.22074758]
[1756723973156,0.27,199.18,199.08,2.22074758]
[1756723973654,4.5193,199.14,199.08,2.22074758]
[1756723975353,4.5193,199.14,199.09,2.22074758]
[1756723975754,4.5196,199.13,199.09,2.22074758]
[1756723976557,4.5198,199.12,199.09,2.22074758]
[1756723977561,4.5193,199.14,199.09,2.22074758]
[1756723981567,4.5196,199.13,199.07,8.01]
[1756723981767,4.5196,199.13,199.09,2.22074758]
[1756723983166,4.5191,199.15,199.07,8.01]
[1756723983367,0.27,199.18,199.07,12.5307]
[1756723983566,0.27,199.18,199.1,2.22074758]
[1756723985065,70.5414,199.25,199.13,2.22074758]
[1756723985269,0.28,199.25,199.13,2.22074758]
[1756723985471,0.28,199.25,199.16,2.22074758]
[1756723985669,4.5173,199.23,199.16,2.22074758]
[1756723986265,4.5173,199.23,199.05,4.20270895]
[1756723986266,2.22074758,199.19,199.05,4.20270895]
[1756723986563,0.28,199.12,199.03,2.22074758]
[1756723987165,4.5206,199.09,199.0,2.22074758]
[1756723988472,4.5208,199.08,199.0,2.22074758]
[1756723989766,4.521,199.07,199.0,2.22074758]
[1756723990971,70.3326,199.05,198.94,11.84270895]
[1756723991268,0.29,199.05,198.94,2.22074758]
[1756723991469,4.5224,199.01,198.94,2.22074758]
[1756723991672,70.3356,199.04,198.94,2.22074758]
[1756723992169,70.3393,199.03,198.93,2.22074758]
[1756723992471,72.56004758,199.03,198.92,2.22074758]
[1756723993368,4.5228,198.99,198.92,2.22074758]
[1756723993870,4.5231,198.97,198.9,7.64]
[1756723994068,4.5231,198.97,198.9,9.86074758]
[1756723994474,4.5226,198.99,198.9,9.86074758]
[1756723995377,4.5222,199.01,198.93,2.22074758]
[1756723995676,72.83944758,199.06,198.93,2.22074758]
[1756723995978,4.5224,199.01,198.93,2.22074758]
[1756723996572,72.83944758,199.06,198.93,7.64]
[1756723996573,0.29,199.06,198.93,7.64]
[1756723996879,70.3253,199.07,198.98,2.22074758]
[1756723997178,4.5215,199.04,198.98,2.22074758]
[1756723997379,0.29,199.09,198.98,2.22074758]
[1756723997677,0.29,199.09,199.0,2.22074758]
[1756723997678,70.6081,199.09,199.0,2.22074758]
[1756723998179,4.5213,199.06,199.0,2.22074758]
[1756723998381,109.14244531,199.12,199.03,2.22074758]
[1756723998781,4.5201,199.11,199.03,2.22074758]
[1756723999579,4.5201,199.11,199.06,2.22074758]
[1756724002079,70.6045,199.1,199.03,2.22074758]
[1756724002482,4.5215,199.04,199.0,2.22074758]
[1756724003173,4.5211,199.06,199.0,2.22074758]
[1756724003380,0.29,199.1,199.0,2.22074758]
[1756724003579,70.6044,199.1,199.0,2.22074758]
[1756724003784,4.5215,199.05,199.0,2.22074758]
[1756724003981,4.5215,199.05,198.98,11.19507785]
[1756724006081,0.03171495,199.03,198.94,11.86121521]
[1756724006284,0.03171495,199.03,198.95,3.55507785]
[1756724006484,0.03171495,199.03,199.0,0.03447991]
[1756724006485,0.32171495,199.03,199.0,0.03447991]
[1756724006881,0.29,199.02,199.0,0.03447991]
[1756724007783,4.5224,199.01,199.0,0.03447991]
[1756724008880,0.03171495,199.03,199.0,0.03447991]
[1756724010886,4.55361495,199.03,199.0,0.03447991]
[1756724011087,0.03171495,199.03,199.0,0.03447991]
[1756724011291,0.03171495,199.03,199.0,7.67447991]
[1756724011590,0.03171495,199.03,199.0,0.03447991]
[1756724011982,0.32171495,199.03,199.0,0.03447991]
[1756724012186,4.5221,199.02,199.0,0.03447991]
[1756724012388,4.8121,199.02,199.0,0.03447991]
[1756724015686,0.29,199.01,199.0,0.03447991]
[1756724015990,0.79,199.01,198.88,11.19507785]
[1756724016190,0.29,199.01,198.92,3.55507785]
[1756724016589,70.3327,199.05,198.92,3.55507785]
[1756724017194,0.03519883,199.0,198.92,3.55507785]
[1756724017394,0.03519883,199.0,198.92,8.07907785]
[1756724017690,0.03519883,199.0,198.95,11.19507785]
[1756724018485,0.03519883,199.0,198.99,7.76]
[1756724018892,70.3213,199.08,198.98,3.55507785]
[1756724019091,0.03547026,199.01,198.98,3.55507785]
[1756724019493,4.5216,199.04,198.98,3.55507785]
[1756724019690,0.035656,199.01,198.98,3.55507785]
[1756724021093,4.5225,199.0,198.91,7.76]
[1756724021296,0.035656,199.01,198.93,3.55507785]
[1756724021898,70.3504,199.0,198.9,3.55507785]
[1756724022390,4.5237,198.95,198.9,3.55507785]
[1756724022993,4.5237,198.95,198.91,7.76]
[1756724023696,4.5237,198.95,198.9,3.55507785]
[1756724024098,4.5237,198.95,198.9,11.31507785]
[1756724024298,0.03576088,198.97,198.9,11.31507785]
[1756724024595,0.03576088,198.97,198.93,3.55507785]
[1756724024793,0.03576088,198.97,198.94,7.76]
[1756724025995,0.03576088,198.97,198.93,3.55507785]
[1756724026298,0.03576088,198.97,198.94,7.76]
[1756724026901,0.03576088,198.97,198.96,3.55507785]
[1756724027894,0.03576088,198.97,198.96,11.31507785]
[1756724028093,0.25,199.09,198.96,11.81507785]
[1756724028299,0.25,199.09,198.96,11.31507785]
[1756724028495,0.25,199.1,198.91,7.76]
[1756724028801,3.55507785,199.11,198.94,3.55507785]
[1756724029405,0.25,199.1,198.94,3.55507785]
[1756724029592,3.55507785,199.11,198.94,3.55507785]
[1756724029896,0.25,199.1,198.94,3.55507785]
[1756724030100,0.25,199.15,198.94,11.31507785]
[1756724030304,0.25,199.1,198.94,11.31507785]
[1756724030800,3.55507785,199.11,198.94,15.83877785]
[1756724030996,246.57542574,199.16,198.94,15.83877785]
[1756724030997,0.25,199.1,198.94,11.31507785]
[1756724031194,0.25,199.1,198.97,8.07797785]
[1756724031395,3.55507785,199.15,199.0,3.55507785]
[1756724031702,0.25,199.14,199.0,3.55507785]
[1756724032093,0.25,199.14,199.0,8.07737785]
[1756724032298,0.25,199.14,198.86,8.33480012]
[1756724032299,0.25,199.14,199.03,3.55507785]
[1756724032705,109.64141975,199.17,199.03,3.55507785]
[1756724032902,109.64141975,199.17,199.04,7.76]
[1756724033102,109.64141975,199.17,199.06,3.55507785]
[1756724035505,0.23,199.16,199.03,3.55507785]
[1756724037209,0.23,199.16,199.03,11.31507785]
[1756724039712,4.5199,199.11,199.03,11.31507785]
[1756724039912,70.297,199.15,199.03,11.31507785]
[1756724040412,4.5203,199.1,199.03,11.31507785]
[1756724040610,70.5354,199.13,199.0,3.55507785]
[1756724040809,4.5207,199.08,199.0,3.55507785]
[1756724043210,4.5202,199.1,199.0,3.55507785]
[1756724043514,0.23,199.13,199.0,3.55507785]
[1756724044211,0.23,199.13,199.01,7.76]
[1756724044515,179.93401975,199.17,199.04,7.76]
[1756724045305,109.64141975,199.17,199.07,7.76]
[1756724046213,4.5189,199.16,199.07,7.76]
[1756724046410,109.64141975,199.17,199.07,7.76]
[1756724046809,109.64141975,199.17,199.0,74.56901521]
[1756724046810,5.74602574,199.28,199.1,78.0707]
[1756724047117,0.23,199.28,199.17,7.76]
[1756724048518,4.5169,199.25,199.17,7.76]
[1756724049217,4.5171,199.24,199.17,7.76]
[1756724050719,70.2618,199.25,199.15,3.55507785]
[1756724050919,70.2618,199.25,199.14,3.55507785]
[1756724051213,70.2649,199.24,199.14,3.55507785]
[1756724052116,4.5175,199.22,199.14,3.55507785]
[1756724052514,4.5178,199.21,199.14,3.55507785]
[1756724052716,70.2655,199.24,199.15,3.55507785]
[1756724053523,4.5183,199.19,199.15,3.55507785]
[1756724054316,70.259,199.26,199.15,3.58932246]
[1756724054522,70.259,199.26,199.15,11.44932246]
[1756724054523,0.0382361,199.19,199.15,11.44932246]
[1756724055720,0.0382361,199.19,199.15,3.58932246]
[1756724056514,0.0382361,199.19,199.15,0.03424461]
[1756724057116,0.23,199.18,199.15,0.03424461]
[1756724057522,0.0382361,199.19,199.15,0.03424461]
[1756724057922,0.23,199.18,199.15,0.03424461]
[1756724058424,0.0382361,199.19,199.15,0.03424461]
[1756724058923,0.2682361,199.19,199.15,0.03424461]
[1756724059122,0.23,199.17,199.15,0.03424461]
[1756724059817,0.0382361,199.19,199.15,0.03424461]
[1756724060023,0.23,199.18,199.15,0.03424461]
[1756724060722,0.23,199.17,199.15,0.03424461]
[1756724060923,0.23,199.16,199.03,7.86]
[1756724061126,0.23,199.16,198.88,8.33480012]
[1756724061127,0.2,199.15,198.99,11.41507785]
[1756724061626,0.2,199.15,198.99,15.93757785]
[1756724062022,0.2,199.15,199.0,4.5223]
[1756724062225,0.03523088,199.09,199.0,4.5223]
[1756724063032,0.03523088,199.09,199.0,8.07737785]
[1756724063232,0.03523088,199.09,199.01,4.522]
[1756724063433,0.03523088,199.09,199.02,7.86]
[1756724064025,0.03523088,199.09,199.03,3.55507785]
[1756724066134,0.03523088,199.09,198.93,4.19372196]
[1756724066339,0.03523088,199.09,198.99,3.55507785]
[1756724066538,0.87436087,199.12,198.99,3.55507785]
[1756724066935,0.03322321,199.06,199.0,7.86]
[1756724067233,0.03322321,199.06,199.04,7.89837983]
[1756724068736,0.03322321,199.06,199.05,7.86]
[1756724069442,0.03322321,199.06,199.04,0.03837983]
[1756724076244,0.23322321,199.06,199.04,0.03837983]
[1756724076847,0.03322321,199.06,199.04,0.03837983]
[1756724078146,0.03322321,199.06,199.05,7.86]
[1756724078742,1.07428399,199.15,199.05,7.86]
[1756724079047,0.87428399,199.15,199.05,11.41507785]
[1756724079444,0.87428399,199.15,199.05,3.55507785]
[1756724079649,15.09,199.25,198.96,7.74879981]
[1756724079650,0.25,199.23,199.09,7.85]
[1756724079852,0.8741632,199.19,199.09,7.85]
[1756724080045,0.03305458,199.18,199.09,7.85]
[1756724084748,0.03305458,199.18,199.09,12.3702]
[1756724084948,0.03305458,199.18,199.08,3.55507785]
[1756724085152,0.03305458,199.18,199.09,7.85]
[1756724085348,0.03305458,199.18,199.1,4.52]
[1756724085545,0.03305458,199.18,199.11,7.85]
[1756724090753,0.03305458,199.18,199.12,4.5195]
[1756724091149,0.03305458,199.18,199.13,7.85]
[1756724091456,0.03305458,199.18,199.13,4.5193]
[1756724091953,0.03305458,199.18,199.14,7.85]
[1756724092159,0.03305458,199.18,199.13,4.5193]
[1756724092559,3.83507785,199.32,199.15,7.85]
[1756724092953,0.87380103,199.28,199.15,12.3689]
[1756724093153,0.87380103,199.28,199.17,3.55507785]
[1756724093353,0.87380103,199.28,199.18,7.85]
[1756724093559,0.28,199.32,199.18,4.5182]
[1756724093759,0.87357072,199.31,199.21,0.03285674]
[1756724093962,0.28,199.36,199.22,7.85]
[1756724094460,0.87348301,199.34,199.27,0.03219449]
[1756724094656,0.27,199.33,199.27,0.03219449]
[1756724095553,0.87348301,199.34,199.27,0.03219449]
[1756724096563,0.27,199.33,199.27,0.03219449]
[1756724097767,0.87348301,199.34,199.27,0.03219449]
[1756724098059,1.14348301,199.34,199.27,0.03219449]
[1756724101370,0.87348301,199.34,199.27,0.03219449]
[1756724103967,0.27,199.38,199.27,0.03219449]
[1756724104168,0.87335149,199.37,199.27,0.03219449]
[1756724104470,0.87335149,199.37,199.28,7.85]
[1756724106371,0.27,199.42,199.3,7.85]
[1756724106674,0.87318713,199.41,199.3,7.85]
[1756724107069,0.87318713,199.41,199.34,0.03648966]
[1756724107275,0.27,199.4,199.34,0.03648966]
[1756724108172,2.21593271,199.36,199.34,0.03648966]
[1756724108376,0.27,199.35,199.34,0.03648966]
[1756724109073,0.77,199.35,199.34,0.03648966]
[1756724109274,2.98593271,199.35,199.34,0.03648966]
[1756724109865,0.77,199.35,199.34,0.03648966]
[1756724115279,0.27,199.4,199.34,0.03648966]
[1756724115474,0.27,199.38,199.34,0.03648966]
[1756724115974,0.27,199.37,199.34,0.03648966]
[1756724116181,0.27,199.38,199.34,0.03648966]
[1756724116379,0.27,199.35,199.34,0.03648966]
[1756724117574,3.54658567,199.36,199.34,0.03648966]
[1756724118382,3.81658567,199.36,199.34,0.03648966]
[1756724119877,0.27,199.35,199.34,0.03648966]
[1756724120676,0.77,199.35,199.34,0.03648966]
[1756724121471,0.5,199.35,199.21,7.4]
[1756724121670,0.26,199.31,199.21,7.4]
[1756724122080,3.54658567,199.29,199.21,7.4]
[1756724123679,3.54658567,199.33,199.21,7.4]
[1756724125575,0.26,199.32,199.21,7.4]
[1756724129982,2.21785711,199.3,199.21,7.4]
[1756724132182,2.21785711,199.27,199.18,7.4]
[1756724133995,2.21785711,199.24,199.12,2.21785711]
[1756724134195,2.21785711,199.24,199.13,7.4]
[1756724138196,0.26,199.27,199.13,7.4]
[1756724138391,2.21785711,199.24,199.13,7.4]
[1756724139699,2.21785711,199.21,199.13,7.4]
[1756724140000,0.03754181,199.2,199.13,7.4]
[1756724141691,0.03754181,199.2,199.13,9.61785711]
[1756724141896,0.03754181,199.2,199.14,7.75]
[1756724142098,0.03754181,199.2,199.16,2.21785711]
[1756724142392,0.27,199.32,199.17,7.75]
[1756724142597,2.21785711,199.29,199.17,7.75]
[1756724142994,2.21785711,199.29,199.19,2.21785711]
[1756724143301,2.21785711,199.29,199.2,7.75]
[1756724143800,2.21785711,199.29,199.23,0.03320155]
[1756724144304,2.21785711,199.31,199.23,0.03320155]
[1756724144600,2.21785711,199.33,199.23,7.78320155]
[1756724145097,2.21785711,199.33,199.23,7.75]
[1756724145296,2.21785711,199.36,199.26,7.78785314]
[1756724146199,0.03659175,199.33,199.26,7.78785314]
[1756724146601,0.03659175,199.33,199.26,7.75]
[1756724146793,0.03659175,199.33,199.28,0.03490252]
[1756724146997,0.03659175,199.33,199.28,7.78490252]
[1756724147299,0.03659175,199.33,199.29,7.75]
[1756724148393,0.03659175,199.33,199.28,0.03490252]
[1756724148605,0.03659175,199.33,199.29,7.75]
[1756724149205,0.03659175,199.33,199.28,0.03490252]
[1756724149498,0.03659175,199.33,199.29,7.75]
[1756724150405,0.03659175,199.33,199.28,7.78490252]
[1756724150602,0.03659175,199.33,199.28,0.03490252]
[1756724150810,0.03659175,199.33,199.29,7.75]
[1756724152801,0.03659175,199.33,199.28,0.03490252]
[1756724153402,110.73210288,199.39,199.31,7.75]
[1756724154407,110.73210288,199.39,199.31,9.96785711]
[1756724154909,110.73210288,199.39,199.33,0.0327148]
[1756724155706,110.73210288,199.39,199.33,7.7827148]
[1756724156213,112.94995999,199.39,199.33,0.0327148]
[1756724157108,110.73210288,199.39,199.33,0.0327148]
[1756724157606,2.21785711,199.38,199.33,0.0327148]
[1756724157910,110.73210288,199.39,199.33,0.0327148]
[1756724158206,112.94995999,199.39,199.33,0.0327148]
[1756724158406,110.73210288,199.39,199.33,7.7827148]
[1756724159311,2.21785711,199.46,199.35,7.75]
[1756724159603,0.87301189,199.44,199.35,7.75]
[1756724159809,0.87301189,199.44,199.2,2.21785711]
[1756724159810,2.21785711,199.43,199.24,7.75]
[1756724160107,0.87301189,199.44,199.38,0.03233098]